[Event "Early-Titled-Tuesday-Blitz-January-23-2024"]
[Site "Chess.com"]
[Date "2024.01.23"]
[Round "5"]
[White "IlanSchnaider"]
[Black "FLYD"]
[Result "1-0"]
[WhiteElo "2782"]
[BlackElo "2100"]
[TimeControl "180+1"]
[EndTime "8:55:44 PST"]
[Termination "IlanSchnaider won by checkmate"]

1. e4 {[%clk 0:03:00]} 1... e5 {[%clk 0:02:56.7]} 2. Nf3 {[%clk 0:03:00.1]} 2...
Nf6 {[%clk 0:02:55.7]} 3. d4 {[%clk 0:03:00.2]} 3... Nxe4 {[%clk 0:02:55.6]} 4.
Bd3 {[%clk 0:03:00.3]} 4... d5 {[%clk 0:02:55]} 5. Nxe5 {[%clk 0:03:00.9]} 5...
Nc6 {[%clk 0:02:54.1]} 6. Nxc6 {[%clk 0:02:53.9]} 6... bxc6 {[%clk 0:02:55]} 7.
O-O {[%clk 0:02:52.7]} 7... Bd6 {[%clk 0:02:54.5]} 8. Re1 {[%clk 0:02:51.9]}
8... O-O {[%clk 0:02:54.4]} 9. Bxe4 {[%clk 0:02:42.8]} 9... dxe4 {[%clk
0:02:55.3]} 10. Rxe4 {[%clk 0:02:40.3]} 10... c5 {[%clk 0:02:55.4]} 11. Nc3
{[%clk 0:02:32.7]} 11... cxd4 {[%clk 0:02:47.8]} 12. Rxd4 {[%clk 0:02:28.1]}
12... Bb7 {[%clk 0:02:44.1]} 13. Bf4 {[%clk 0:02:25.9]} 13... Qf6 {[%clk
0:02:25.8]} 14. Bxd6 {[%clk 0:02:24.3]} 14... cxd6 {[%clk 0:02:26.7]} 15. Rxd6
{[%clk 0:02:06.7]} 15... Qg5 {[%clk 0:02:26.7]} 16. Qf1 {[%clk 0:02:05.3]} 16...
Rfe8 {[%clk 0:02:23.2]} 17. Rad1 {[%clk 0:02:04.2]} 17... Rac8 {[%clk
0:02:13.1]} 18. Rd7 {[%clk 0:01:52.4]} 18... Bc6 {[%clk 0:02:11.3]} 19. Rxa7
{[%clk 0:01:47.4]} 19... h5 {[%clk 0:02:07.7]} 20. f3 {[%clk 0:01:36.5]} 20...
h4 {[%clk 0:01:50.1]} 21. Qf2 {[%clk 0:01:07.4]} 21... h3 {[%clk 0:01:33.4]} 22.
g3 {[%clk 0:01:07.2]} 22... Re3 {[%clk 0:01:09.6]} 23. Ne4 {[%clk 0:00:46.3]}
23... Qh6 {[%clk 0:00:33.5]} 24. Ra6 {[%clk 0:00:33.3]} 24... f5 {[%clk
0:00:16.3]} 25. Rd6 {[%clk 0:00:23.4]} 25... Bxe4 {[%clk 0:00:05.2]} 26. Rxh6
{[%clk 0:00:18.8]} 26... Rxf3 {[%clk 0:00:05.7]} 27. Qd2 {[%clk 0:00:08.1]}
27... Re8 {[%clk 0:00:04.2]} 28. Rhe6 {[%clk 0:00:07]} 28... Rf8 {[%clk
0:00:03]} 29. Re5 {[%clk 0:00:04.2]} 29... Bb7 {[%clk 0:00:02.5]} 30. Rb6 {[%clk
0:00:04]} 30... Ba8 {[%clk 0:00:02.6]} 31. Rb3 {[%clk 0:00:03.8]} 31... Rxb3
{[%clk 0:00:02]} 32. axb3 {[%clk 0:00:04.7]} 32... f4 {[%clk 0:00:02.7]} 33.
gxf4 {[%clk 0:00:04.6]} 33... Rxf4 {[%clk 0:00:03.6]} 34. Qxf4 {[%clk
0:00:04.7]} 34... Bd5 {[%clk 0:00:02.9]} 35. Re8+ {[%clk 0:00:04]} 35... Kh7
{[%clk 0:00:02.8]} 36. Qf5+ {[%clk 0:00:04.7]} 36... g6 {[%clk 0:00:02.8]} 37.
Qxd5 {[%clk 0:00:04.9]} 37... g5 {[%clk 0:00:02.6]} 38. Qf5+ {[%clk 0:00:04.1]}
38... Kh6 {[%clk 0:00:02.9]} 39. Qf6+ {[%clk 0:00:04.2]} 39... Kh5 {[%clk
0:00:03.2]} 40. Rh8+ {[%clk 0:00:04.4]} 40... Kg4 {[%clk 0:00:04.1]} 41. Qxg5+
{[%clk 0:00:02.7]} 41... Kf3 {[%clk 0:00:03.8]} 42. Rxh3+ {[%clk 0:00:03.1]}
42... Ke2 {[%clk 0:00:04.2]} 43. Qe3+ {[%clk 0:00:03.6]} 43... Kd1 {[%clk
0:00:04.7]} 44. Qf2 {[%clk 0:00:03.3]} 44... Kc1 {[%clk 0:00:04.3]} 45. b4
{[%clk 0:00:03.9]} 45... Kxb2 {[%clk 0:00:05.2]} 46. b5 {[%clk 0:00:04.4]} 46...
Kb1 {[%clk 0:00:04.9]} 47. b6 {[%clk 0:00:04.8]} 47... Kb2 {[%clk 0:00:05.4]}
48. b7 {[%clk 0:00:05.2]} 48... Kc1 {[%clk 0:00:06.2]} 49. b8=Q {[%clk
0:00:04.8]} 49... Kd1 {[%clk 0:00:06.1]} 50. Qb1# {[%clk 0:00:05.5]} 1-0

[Event "Early-Titled-Tuesday-Blitz-January-23-2024"]
[Site "Chess.com"]
[Date "2024.01.23"]
[Round "5"]
[White "agvega14"]
[Black "UK_23"]
[Result "1-0"]
[WhiteElo "2173"]
[BlackElo "2371"]
[TimeControl "180+1"]
[EndTime "8:55:44 PST"]
[Termination "agvega14 won by resignation"]

1. e4 {[%clk 0:02:58.5]} 1... e5 {[%clk 0:02:59.6]} 2. Nf3 {[%clk 0:02:57.6]}
2... Nc6 {[%clk 0:03:00.1]} 3. d4 {[%clk 0:02:57.3]} 3... exd4 {[%clk
0:03:00.3]} 4. Bc4 {[%clk 0:02:57.5]} 4... Nf6 {[%clk 0:02:55.9]} 5. e5 {[%clk
0:02:57.6]} 5... d5 {[%clk 0:02:55.9]} 6. Bb5 {[%clk 0:02:57.3]} 6... Nd7 {[%clk
0:02:53.8]} 7. O-O {[%clk 0:02:51.4]} 7... Be7 {[%clk 0:02:53.7]} 8. Bxc6 {[%clk
0:02:44.2]} 8... bxc6 {[%clk 0:02:54.6]} 9. Nxd4 {[%clk 0:02:43.3]} 9... Nb8
{[%clk 0:02:55.3]} 10. Nc3 {[%clk 0:02:36.9]} 10... O-O {[%clk 0:02:54.9]} 11.
f4 {[%clk 0:02:28.4]} 11... f6 {[%clk 0:02:53]} 12. Qh5 {[%clk 0:02:10.6]} 12...
fxe5 {[%clk 0:02:44.6]} 13. fxe5 {[%clk 0:02:07.8]} 13... Rxf1+ {[%clk
0:02:41.3]} 14. Kxf1 {[%clk 0:02:08.4]} 14... Qf8+ {[%clk 0:02:39]} 15. Nf3
{[%clk 0:02:04.1]} 15... Bf5 {[%clk 0:02:10.6]} 16. Be3 {[%clk 0:01:43.1]} 16...
Bxc2 {[%clk 0:02:06.2]} 17. Rc1 {[%clk 0:01:42.2]} 17... Bg6 {[%clk 0:02:05.5]}
18. Qg4 {[%clk 0:01:41.3]} 18... Qf5 {[%clk 0:02:03.6]} 19. Qxf5 {[%clk
0:01:30.5]} 19... Bxf5 {[%clk 0:02:04.5]} 20. Kg1 {[%clk 0:01:23.9]} 20... h6
{[%clk 0:01:57.1]} 21. Na4 {[%clk 0:01:21.5]} 21... Kf7 {[%clk 0:01:48.1]} 22.
Nd4 {[%clk 0:01:19]} 22... Bd7 {[%clk 0:01:47.1]} 23. a3 {[%clk 0:01:06.1]}
23... a5 {[%clk 0:01:34.9]} 24. Rf1+ {[%clk 0:01:03.1]} 24... Ke8 {[%clk
0:01:30.4]} 25. e6 {[%clk 0:00:51.7]} 25... Bc8 {[%clk 0:01:30.4]} 26. Nf5
{[%clk 0:00:51.8]} 26... Bxe6 {[%clk 0:01:18.5]} 27. Nxg7+ {[%clk 0:00:51.2]}
27... Kd7 {[%clk 0:01:19.3]} 28. Bc5 {[%clk 0:00:45.5]} 28... Bg8 {[%clk
0:01:00.9]} 29. Bxe7 {[%clk 0:00:38.6]} 29... Kxe7 {[%clk 0:01:01.8]} 30. Nc5
{[%clk 0:00:38.2]} 30... Kd6 {[%clk 0:00:58.5]} 31. b4 {[%clk 0:00:33.3]} 31...
axb4 {[%clk 0:00:58.2]} 32. axb4 {[%clk 0:00:34.2]} 32... Nd7 {[%clk 0:00:46.4]}
33. Nf5+ {[%clk 0:00:31.7]} 33... Ke5 {[%clk 0:00:44.3]} 34. Nxd7+ {[%clk
0:00:30.3]} 34... Ke4 {[%clk 0:00:44.9]} 35. Nc5+ {[%clk 0:00:29.4]} 35... Ke5
{[%clk 0:00:42.7]} 36. Nxh6 {[%clk 0:00:29.2]} 36... Bh7 {[%clk 0:00:42.9]} 37.
Ng4+ {[%clk 0:00:28.2]} 37... Kd4 {[%clk 0:00:42.7]} 38. Rc1 {[%clk 0:00:24.9]}
38... Rb8 {[%clk 0:00:41.8]} 39. Na6 {[%clk 0:00:23.1]} 39... Rb6 {[%clk
0:00:42]} 40. Nxc7 {[%clk 0:00:22.4]} 40... Rxb4 {[%clk 0:00:39.9]} 41. Rxc6
{[%clk 0:00:21.4]} 41... Be4 {[%clk 0:00:38.7]} 42. h3 {[%clk 0:00:19.4]} 42...
Rb2 {[%clk 0:00:38.8]} 43. Ne6+ {[%clk 0:00:19.1]} 43... Kd3 {[%clk 0:00:36.7]}
44. Nf4+ {[%clk 0:00:19]} 44... Kd4 {[%clk 0:00:36.9]} 45. Kh2 {[%clk
0:00:18.5]} 45... Bf5 {[%clk 0:00:26.7]} 46. Kg3 {[%clk 0:00:15]} 46... Rb3+
{[%clk 0:00:25.8]} 47. Kh4 {[%clk 0:00:15]} 47... Ke4 {[%clk 0:00:26.3]} 48. Nh5
{[%clk 0:00:12.9]} 48... d4 {[%clk 0:00:25.5]} 49. Ng3+ {[%clk 0:00:12.8]} 49...
Kf4 {[%clk 0:00:23.2]} 50. Rf6 {[%clk 0:00:12.5]} 50... Rxg3 {[%clk 0:00:18.4]}
51. Rxf5+ {[%clk 0:00:09]} 51... Kxf5 {[%clk 0:00:18.8]} 52. Kxg3 {[%clk
0:00:09.9]} 52... Ke4 {[%clk 0:00:18.8]} 53. Kf2 {[%clk 0:00:10]} 53... Kd3
{[%clk 0:00:19.1]} 54. Ne5+ {[%clk 0:00:09.8]} 54... Ke4 {[%clk 0:00:19.2]} 55.
Nf3 {[%clk 0:00:10.4]} 55... d3 {[%clk 0:00:19.3]} 56. Ke1 {[%clk 0:00:10.8]}
56... Kf4 {[%clk 0:00:19]} 57. Kd2 {[%clk 0:00:11.2]} 57... Kg3 {[%clk
0:00:19.9]} 58. h4 {[%clk 0:00:11.1]} 1-0

[Event "Early-Titled-Tuesday-Blitz-January-23-2024"]
[Site "Chess.com"]
[Date "2024.01.23"]
[Round "5"]
[White "Chernov_Mikhail"]
[Black "NM_Antelacus"]
[Result "0-1"]
[WhiteElo "2358"]
[BlackElo "2192"]
[TimeControl "180+1"]
[EndTime "8:55:46 PST"]
[Termination "NM_Antelacus won by resignation"]

1. e4 {[%clk 0:02:47.9]} 1... c5 {[%clk 0:02:59.4]} 2. Nf3 {[%clk 0:02:47.8]}
2... Nc6 {[%clk 0:02:59.5]} 3. Bb5 {[%clk 0:02:47.4]} 3... g6 {[%clk 0:02:59]}
4. O-O {[%clk 0:02:48]} 4... Bg7 {[%clk 0:02:59.2]} 5. Re1 {[%clk 0:02:48.6]}
5... Nf6 {[%clk 0:02:55.7]} 6. c3 {[%clk 0:02:48.3]} 6... O-O {[%clk 0:02:53.6]}
7. a4 {[%clk 0:02:48.2]} 7... d5 {[%clk 0:02:37.6]} 8. e5 {[%clk 0:02:45.5]}
8... Ne8 {[%clk 0:02:35.8]} 9. d4 {[%clk 0:02:40.4]} 9... cxd4 {[%clk
0:02:32.2]} 10. cxd4 {[%clk 0:02:41.3]} 10... Nc7 {[%clk 0:02:30.4]} 11. Bxc6
{[%clk 0:02:34.4]} 11... bxc6 {[%clk 0:02:29.6]} 12. Qc2 {[%clk 0:02:34.9]}
12... Bg4 {[%clk 0:02:20.4]} 13. Nbd2 {[%clk 0:02:27.4]} 13... Qd7 {[%clk
0:02:16.2]} 14. h3 {[%clk 0:02:27.1]} 14... Bxf3 {[%clk 0:02:15.8]} 15. Nxf3
{[%clk 0:02:28]} 15... Ne6 {[%clk 0:02:15.7]} 16. b4 {[%clk 0:02:18.5]} 16...
Qb7 {[%clk 0:02:12.2]} 17. Ba3 {[%clk 0:02:18.5]} 17... Rfc8 {[%clk 0:02:11.1]}
18. Rab1 {[%clk 0:02:13.7]} 18... Qb6 {[%clk 0:02:10.1]} 19. Qc3 {[%clk
0:02:09]} 19... Rab8 {[%clk 0:02:06.3]} 20. Rec1 {[%clk 0:02:08.9]} 20... Qa6
{[%clk 0:01:56.6]} 21. Qc2 {[%clk 0:02:02.1]} 21... Qb6 {[%clk 0:01:50.6]} 22.
Qd1 {[%clk 0:02:01.5]} 22... a5 {[%clk 0:01:47.5]} 23. bxa5 {[%clk 0:01:48.8]}
23... Qxa5 {[%clk 0:01:42]} 24. Rxc6 {[%clk 0:01:31.1]} 24... h6 {[%clk
0:01:25.3]} 25. Rxc8+ {[%clk 0:01:28.5]} 25... Rxc8 {[%clk 0:01:24.6]} 26. Bxe7
{[%clk 0:01:27.7]} 26... Rc4 {[%clk 0:01:20.2]} 27. Bf6 {[%clk 0:01:18.7]} 27...
Qxa4 {[%clk 0:01:13.9]} 28. Qxa4 {[%clk 0:01:10.4]} 28... Rxa4 {[%clk
0:01:13.1]} 29. Bxg7 {[%clk 0:01:10.7]} 29... Kxg7 {[%clk 0:01:12.3]} 30. Rd1
{[%clk 0:01:11.2]} 30... g5 {[%clk 0:01:06.4]} 31. g3 {[%clk 0:01:11]} 31... Kg6
{[%clk 0:01:06.2]} 32. Kf1 {[%clk 0:01:06.7]} 32... h5 {[%clk 0:01:04.1]} 33. g4
{[%clk 0:00:51.5]} 33... hxg4 {[%clk 0:01:02.8]} 34. hxg4 {[%clk 0:00:52.4]}
34... Nf4 {[%clk 0:01:02.7]} 35. Ng1 {[%clk 0:00:45]} 35... Ne6 {[%clk
0:00:58.8]} 36. Ne2 {[%clk 0:00:45.3]} 36... f5 {[%clk 0:00:55.1]} 37. f3 {[%clk
0:00:42.7]} 37... fxg4 {[%clk 0:00:52.1]} 38. fxg4 {[%clk 0:00:43.6]} 38... Rc4
{[%clk 0:00:44.2]} 39. Kf2 {[%clk 0:00:43.8]} 39... Rb4 {[%clk 0:00:43.4]} 40.
Ke3 {[%clk 0:00:43.4]} 40... Rb3+ {[%clk 0:00:43.1]} 41. Rd3 {[%clk 0:00:43.5]}
41... Rb1 {[%clk 0:00:40.2]} 42. Rc3 {[%clk 0:00:40.3]} 42... Kf7 {[%clk
0:00:33.1]} 43. Ra3 {[%clk 0:00:37.5]} 43... Rb7 {[%clk 0:00:27.5]} 44. Ra5
{[%clk 0:00:37.1]} 44... Rb3+ {[%clk 0:00:23.6]} 45. Kf2 {[%clk 0:00:36.7]}
45... Rb2 {[%clk 0:00:17]} 46. Rxd5 {[%clk 0:00:19.7]} 46... Rxe2+ {[%clk
0:00:15.6]} 47. Kxe2 {[%clk 0:00:12.3]} 47... Nf4+ {[%clk 0:00:15.6]} 48. Ke3
{[%clk 0:00:13.2]} 48... Nxd5+ {[%clk 0:00:15.8]} 49. Ke4 {[%clk 0:00:14.1]}
49... Ke6 {[%clk 0:00:16]} 50. Kf3 {[%clk 0:00:11.8]} 50... Nc3 {[%clk
0:00:14.7]} 51. Ke3 {[%clk 0:00:11.4]} 51... Kd5 {[%clk 0:00:14.8]} 52. Kd3
{[%clk 0:00:11.9]} 52... Nb5 {[%clk 0:00:14.4]} 53. Ke3 {[%clk 0:00:10.7]} 53...
Nxd4 {[%clk 0:00:14]} 0-1

[Event "Early-Titled-Tuesday-Blitz-January-23-2024"]
[Site "Chess.com"]
[Date "2024.01.23"]
[Round "5"]
[White "AsterPhoenix"]
[Black "Yurasova_Daria"]
[Result "0-1"]
[WhiteElo "2565"]
[BlackElo "2462"]
[TimeControl "180+1"]
[EndTime "8:55:48 PST"]
[Termination "Yurasova_Daria won on time"]

1. e4 {[%clk 0:02:58.5]} 1... e5 {[%clk 0:02:51.6]} 2. Nf3 {[%clk 0:02:58.1]}
2... Nc6 {[%clk 0:02:51.5]} 3. Bc4 {[%clk 0:02:58.2]} 3... Bc5 {[%clk
0:02:51.3]} 4. d3 {[%clk 0:02:56.9]} 4... Nf6 {[%clk 0:02:48.3]} 5. Nc3 {[%clk
0:02:57]} 5... d6 {[%clk 0:02:48.5]} 6. Bg5 {[%clk 0:02:53.5]} 6... Bg4 {[%clk
0:02:44.6]} 7. Nd5 {[%clk 0:02:40.8]} 7... Nd4 {[%clk 0:02:40.3]} 8. Nxd4 {[%clk
0:02:21.9]} 8... Bxd1 {[%clk 0:02:35.8]} 9. Nf5 {[%clk 0:02:21.9]} 9... Bxf2+
{[%clk 0:02:13.1]} 10. Kxd1 {[%clk 0:02:19.7]} 10... Rg8 {[%clk 0:01:43.5]} 11.
Rf1 {[%clk 0:02:17.2]} 11... c6 {[%clk 0:01:14.9]} 12. Nxg7+ {[%clk 0:01:38.5]}
12... Rxg7 {[%clk 0:01:14.7]} 13. Bxf6 {[%clk 0:01:20.7]} 13... Qd7 {[%clk
0:00:58.9]} 14. Bxg7 {[%clk 0:00:53]} 14... Qg4+ {[%clk 0:00:52.9]} 15. Kd2
{[%clk 0:00:43.4]} 15... Qg5+ {[%clk 0:00:20]} 16. Ke2 {[%clk 0:00:39.1]} 16...
cxd5 {[%clk 0:00:18.3]} 17. Bb5+ {[%clk 0:00:39.3]} 17... Kd8 {[%clk 0:00:18.5]}
18. Rxf2 {[%clk 0:00:40.2]} 18... Qxg7 {[%clk 0:00:18.4]} 19. exd5 {[%clk
0:00:36.3]} 19... a6 {[%clk 0:00:18.3]} 20. Bc4 {[%clk 0:00:36]} 20... Ke7
{[%clk 0:00:16.7]} 21. Raf1 {[%clk 0:00:34.3]} 21... Rf8 {[%clk 0:00:17.2]} 22.
c3 {[%clk 0:00:28]} 22... f5 {[%clk 0:00:14.8]} 23. g3 {[%clk 0:00:23]} 23...
Qg4+ {[%clk 0:00:14.2]} 24. Kd2 {[%clk 0:00:23]} 24... b5 {[%clk 0:00:14.9]} 25.
Bb3 {[%clk 0:00:22.7]} 25... h5 {[%clk 0:00:13.5]} 26. Bd1 {[%clk 0:00:20.7]}
26... Qg5+ {[%clk 0:00:13.9]} 27. Kc2 {[%clk 0:00:21.3]} 27... h4 {[%clk
0:00:14.3]} 28. gxh4 {[%clk 0:00:20.5]} 28... Qxh4 {[%clk 0:00:14.9]} 29. Rxf5
{[%clk 0:00:16.5]} 29... Rxf5 {[%clk 0:00:13.1]} 30. Rxf5 {[%clk 0:00:17.4]}
30... Qxh2+ {[%clk 0:00:13.7]} 31. Kc1 {[%clk 0:00:12.6]} 31... Qh6+ {[%clk
0:00:12.8]} 32. Kc2 {[%clk 0:00:12.8]} 32... Qh2+ {[%clk 0:00:13.1]} 33. Kc1
{[%clk 0:00:10.7]} 33... Qh1 {[%clk 0:00:12.8]} 34. Rf3 {[%clk 0:00:09.8]} 34...
a5 {[%clk 0:00:11.6]} 35. a3 {[%clk 0:00:10.2]} 35... a4 {[%clk 0:00:11.6]} 36.
Kd2 {[%clk 0:00:07.2]} 36... Qg2+ {[%clk 0:00:10.1]} 37. Be2 {[%clk 0:00:07.2]}
37... Qg5+ {[%clk 0:00:10]} 38. Kc2 {[%clk 0:00:06.6]} 38... Qg2 {[%clk
0:00:09.8]} 39. Kd2 {[%clk 0:00:07]} 39... Kd7 {[%clk 0:00:09.5]} 40. Kd1 {[%clk
0:00:04.8]} 40... Qh1+ {[%clk 0:00:08.2]} 41. Kd2 {[%clk 0:00:05.3]} 41... Qh6+
{[%clk 0:00:07.8]} 42. Kc2 {[%clk 0:00:05.8]} 42... Kc7 {[%clk 0:00:08.3]} 43.
Rf1 {[%clk 0:00:04]} 43... Qh2 {[%clk 0:00:07.7]} 44. Kd2 {[%clk 0:00:04]} 44...
Kb6 {[%clk 0:00:07.8]} 45. Rf8 {[%clk 0:00:03.3]} 45... Qh6+ {[%clk 0:00:06.2]}
46. Kc2 {[%clk 0:00:02.9]} 46... Qxf8 {[%clk 0:00:06.8]} 0-1

[Event "Early-Titled-Tuesday-Blitz-January-23-2024"]
[Site "Chess.com"]
[Date "2024.01.23"]
[Round "5"]
[White "BasilSmash"]
[Black "Korchmar_Vasiliy"]
[Result "1/2-1/2"]
[WhiteElo "2548"]
[BlackElo "2717"]
[TimeControl "180+1"]
[EndTime "8:55:50 PST"]
[Termination "Game drawn by repetition"]

1. e4 {[%clk 0:03:00.9]} 1... c5 {[%clk 0:02:59.7]} 2. Nf3 {[%clk 0:03:00.8]}
2... a6 {[%clk 0:03:00]} 3. c4 {[%clk 0:02:59.8]} 3... Nc6 {[%clk 0:02:58.6]} 4.
d4 {[%clk 0:02:59.7]} 4... cxd4 {[%clk 0:02:59.5]} 5. Nxd4 {[%clk 0:03:00.3]}
5... Nf6 {[%clk 0:02:59.9]} 6. Nc3 {[%clk 0:03:00.1]} 6... e6 {[%clk 0:03:00.5]}
7. Nxc6 {[%clk 0:02:54.3]} 7... dxc6 {[%clk 0:02:53.9]} 8. Qxd8+ {[%clk
0:02:53.9]} 8... Kxd8 {[%clk 0:02:54.8]} 9. e5 {[%clk 0:02:52.1]} 9... Ng4
{[%clk 0:02:51.5]} 10. Bf4 {[%clk 0:02:50.9]} 10... Bb4 {[%clk 0:02:39.9]} 11.
h3 {[%clk 0:02:43.4]} 11... Bxc3+ {[%clk 0:02:37.6]} 12. bxc3 {[%clk 0:02:44.3]}
12... Nh6 {[%clk 0:02:37.8]} 13. g4 {[%clk 0:02:41.4]} 13... Kc7 {[%clk
0:02:29]} 14. Bg2 {[%clk 0:02:39.2]} 14... Ng8 {[%clk 0:01:59.3]} 15. O-O-O
{[%clk 0:02:36.8]} 15... Ne7 {[%clk 0:01:54.4]} 16. Rd2 {[%clk 0:02:11.5]} 16...
Rd8 {[%clk 0:01:47]} 17. Rxd8 {[%clk 0:02:10.3]} 17... Kxd8 {[%clk 0:01:47.9]}
18. Rd1+ {[%clk 0:02:10.2]} 18... Bd7 {[%clk 0:01:25.9]} 19. Be3 {[%clk
0:02:01.2]} 19... Nc8 {[%clk 0:01:10.6]} 20. Bc5 {[%clk 0:01:52.6]} 20... Kc7
{[%clk 0:01:05.8]} 21. f4 {[%clk 0:01:44.5]} 21... b6 {[%clk 0:01:01]} 22. Bf8
{[%clk 0:01:43.6]} 22... g6 {[%clk 0:00:59.8]} 23. c5 {[%clk 0:01:40.5]} 23...
bxc5 {[%clk 0:00:46.9]} 24. Bxc5 {[%clk 0:01:41.4]} 24... Rb8 {[%clk 0:00:47.4]}
25. a4 {[%clk 0:01:22.8]} 25... a5 {[%clk 0:00:35.6]} 26. Kc2 {[%clk 0:01:17.5]}
26... Rb7 {[%clk 0:00:34.5]} 27. Bf1 {[%clk 0:00:39.7]} 27... Nb6 {[%clk
0:00:30.8]} 28. Rb1 {[%clk 0:00:36.6]} 28... Nc8 {[%clk 0:00:02.7]} 29. Bd6+
{[%clk 0:00:26.6]} 29... Nxd6 {[%clk 0:00:02.5]} 30. exd6+ {[%clk 0:00:27.5]}
30... Kb8 {[%clk 0:00:03.1]} 31. Rd1 {[%clk 0:00:14.2]} 31... c5 {[%clk
0:00:03.1]} 32. Bg2 {[%clk 0:00:14.1]} 32... Bxa4+ {[%clk 0:00:03.1]} 33. Kc1
{[%clk 0:00:11.4]} 33... Bxd1 {[%clk 0:00:03.4]} 34. Bxb7 {[%clk 0:00:04.5]}
34... Kxb7 {[%clk 0:00:03.8]} 35. Kxd1 {[%clk 0:00:02.2]} 35... Kc6 {[%clk
0:00:04]} 36. Kc2 {[%clk 0:00:02.2]} 36... c4 {[%clk 0:00:02.5]} 37. Kb2 {[%clk
0:00:01.3]} 37... Kxd6 {[%clk 0:00:02.5]} 38. Ka3 {[%clk 0:00:02.2]} 38... Kc5
{[%clk 0:00:02.5]} 39. Ka4 {[%clk 0:00:02.7]} 39... Kb6 {[%clk 0:00:03]} 40. g5
{[%clk 0:00:02.7]} 40... Ka6 {[%clk 0:00:02.9]} 41. Ka3 {[%clk 0:00:02]} 41...
Kb5 {[%clk 0:00:03.4]} 42. Ka2 {[%clk 0:00:02.3]} 42... Ka4 {[%clk 0:00:03.2]}
43. Kb2 {[%clk 0:00:02.5]} 43... Kb5 {[%clk 0:00:03.7]} 44. Ka3 {[%clk
0:00:02.8]} 44... Kc5 {[%clk 0:00:02.7]} 45. Ka4 {[%clk 0:00:03.7]} 45... Kb6
{[%clk 0:00:02.9]} 46. Ka3 {[%clk 0:00:03.1]} 46... Kc5 {[%clk 0:00:03.1]} 47.
Ka4 {[%clk 0:00:03.5]} 47... Kb6 {[%clk 0:00:02.7]} 48. Ka3 {[%clk 0:00:03.8]}
48... Ka6 {[%clk 0:00:02.7]} 49. Ka4 {[%clk 0:00:04.2]} 49... Kb6 {[%clk
0:00:03.1]} 1/2-1/2

[Event "Early-Titled-Tuesday-Blitz-January-23-2024"]
[Site "Chess.com"]
[Date "2024.01.23"]
[Round "5"]
[White "chess_blitz00"]
[Black "nindjaxx8"]
[Result "1-0"]
[WhiteElo "2473"]
[BlackElo "2582"]
[TimeControl "180+1"]
[EndTime "8:55:50 PST"]
[Termination "chess_blitz00 won by checkmate"]

1. d4 {[%clk 0:02:50]} 1... d5 {[%clk 0:02:57.7]} 2. Nf3 {[%clk 0:02:50.5]} 2...
Nf6 {[%clk 0:02:57.1]} 3. g3 {[%clk 0:02:51.4]} 3... Bf5 {[%clk 0:02:56.8]} 4.
Bg2 {[%clk 0:02:51.6]} 4... e6 {[%clk 0:02:51]} 5. O-O {[%clk 0:02:51.9]} 5...
Be7 {[%clk 0:02:51.1]} 6. c4 {[%clk 0:02:49.9]} 6... O-O {[%clk 0:02:50.7]} 7.
Nbd2 {[%clk 0:02:44.7]} 7... c6 {[%clk 0:02:50.5]} 8. b3 {[%clk 0:02:42.4]} 8...
Nbd7 {[%clk 0:02:50.4]} 9. Bb2 {[%clk 0:02:43]} 9... a5 {[%clk 0:02:48.6]} 10.
a3 {[%clk 0:02:39.4]} 10... a4 {[%clk 0:02:39.7]} 11. b4 {[%clk 0:02:39.3]}
11... Bg6 {[%clk 0:02:32.3]} 12. h3 {[%clk 0:02:18.1]} 12... Ne4 {[%clk
0:02:21.2]} 13. Nxe4 {[%clk 0:02:04.3]} 13... Bxe4 {[%clk 0:02:18]} 14. Rc1
{[%clk 0:02:02.9]} 14... Nb6 {[%clk 0:02:10.4]} 15. Nd2 {[%clk 0:01:28.5]} 15...
Bxg2 {[%clk 0:02:05.2]} 16. Kxg2 {[%clk 0:01:29.4]} 16... Bf6 {[%clk 0:02:02.7]}
17. e4 {[%clk 0:01:21.9]} 17... dxe4 {[%clk 0:01:53]} 18. Nxe4 {[%clk
0:01:20.9]} 18... Qe7 {[%clk 0:01:52.6]} 19. Qe2 {[%clk 0:01:13.6]} 19... Rfd8
{[%clk 0:01:51.4]} 20. Rfd1 {[%clk 0:01:10.2]} 20... Nc8 {[%clk 0:01:42.6]} 21.
Nxf6+ {[%clk 0:00:55]} 21... gxf6 {[%clk 0:01:34]} 22. d5 {[%clk 0:00:51.6]}
22... cxd5 {[%clk 0:01:28.1]} 23. cxd5 {[%clk 0:00:48.7]} 23... e5 {[%clk
0:01:26.7]} 24. Rc4 {[%clk 0:00:29.3]} 24... Nd6 {[%clk 0:01:23.3]} 25. Rh4
{[%clk 0:00:28.1]} 25... Kf8 {[%clk 0:00:15.5]} 26. Rxh7 {[%clk 0:00:23.9]}
26... Ke8 {[%clk 0:00:15.5]} 27. Qg4 {[%clk 0:00:13.7]} 27... f5 {[%clk
0:00:14.7]} 28. Qg7 {[%clk 0:00:12.2]} 28... Nc4 {[%clk 0:00:04.5]} 29. Bc1
{[%clk 0:00:10.1]} 29... Qf8 {[%clk 0:00:02.6]} 30. Rh8 {[%clk 0:00:10]} 30...
Kd7 {[%clk 0:00:02.5]} 31. Rxf8 {[%clk 0:00:09.9]} 31... Rxf8 {[%clk 0:00:03.4]}
32. Bh6 {[%clk 0:00:10.1]} 32... Nd6 {[%clk 0:00:02]} 33. Qxf8 {[%clk
0:00:10.2]} 33... Rxf8 {[%clk 0:00:02.9]} 34. Bxf8 {[%clk 0:00:10.6]} 34... Nc4
{[%clk 0:00:03.1]} 35. b5 {[%clk 0:00:10.2]} 35... Na5 {[%clk 0:00:01.6]} 36.
Bb4 {[%clk 0:00:10.2]} 36... Nc4 {[%clk 0:00:01.8]} 37. d6 {[%clk 0:00:10.2]}
37... e4 {[%clk 0:00:01.9]} 38. h4 {[%clk 0:00:10.4]} 38... Ne5 {[%clk
0:00:01.8]} 39. h5 {[%clk 0:00:10.1]} 39... Ng4 {[%clk 0:00:02]} 40. Rh1 {[%clk
0:00:08.4]} 40... Nh6 {[%clk 0:00:02.5]} 41. Bd2 {[%clk 0:00:08.6]} 41... Ng8
{[%clk 0:00:02.9]} 42. h6 {[%clk 0:00:09]} 42... Nxh6 {[%clk 0:00:03.8]} 43.
Bxh6 {[%clk 0:00:08.8]} 43... Kxd6 {[%clk 0:00:04.7]} 44. Bf4+ {[%clk
0:00:09.5]} 44... Ke6 {[%clk 0:00:04.8]} 45. Rc1 {[%clk 0:00:10.4]} 45... Kd5
{[%clk 0:00:05.7]} 46. Be3 {[%clk 0:00:10.2]} 46... f4 {[%clk 0:00:05.7]} 47.
gxf4 {[%clk 0:00:10.4]} 47... Ke6 {[%clk 0:00:06]} 48. b6 {[%clk 0:00:09.9]}
48... Kf5 {[%clk 0:00:06.9]} 49. Rc5+ {[%clk 0:00:09.9]} 49... Kg6 {[%clk
0:00:07.8]} 50. Rg5+ {[%clk 0:00:10.1]} 50... Kf6 {[%clk 0:00:08]} 51. Re5
{[%clk 0:00:10.1]} 51... Kg6 {[%clk 0:00:07.7]} 52. Kg3 {[%clk 0:00:10.8]} 52...
Kg7 {[%clk 0:00:08.6]} 53. Kg4 {[%clk 0:00:10.9]} 53... f6 {[%clk 0:00:09.5]}
54. Re7+ {[%clk 0:00:10.5]} 54... Kg6 {[%clk 0:00:09.6]} 55. f5# {[%clk
0:00:10.6]} 1-0